fUSD/lending_fUSD_20260416
["ID","MTS","AMOUNT","RATE_DAILY","PERIOD"]
[420597383,1776297043429,-154.0,0.0001225,7]
[420597384,1776297043438,-1651.81367706,0.00012295,2]
[420597385,1776297043447,-242.15909246,0.00012295,2]
[420597386,1776297043466,-649.0,0.0001239,3]
[420597387,1776297043479,-166.66,0.00012481,2]
[420597388,1776297043489,-160.0,0.0001266,2]
[420597389,1776297043498,-160.0,0.0001266,2]
[420597390,1776297043508,-151.0,0.00012739,2]
[420597391,1776297043518,-463.7,0.00012751,2]
[420597392,1776297043528,-1750.0,0.00012767,2]
[420597393,1776297043537,-321.68208,0.00012768,2]
[420597394,1776297043547,-321.68208,0.00012768,2]
[420597395,1776297043557,-321.68208,0.00012768,2]
[420597396,1776297043566,-321.68208,0.00012768,2]
[420597397,1776297043575,-1152.0,0.00012768,2]
[420597398,1776297043585,-19702.13329953,0.00012789,2]
[420597399,1776297043594,-6742.59821864,0.00012789,2]
[420597400,1776297043604,-234.822704,0.00012791,2]
[420597403,1776297043615,-234.822704,0.00012791,2]
[420597404,1776297043624,-234.822704,0.00012791,2]
[420597405,1776297043633,-234.822704,0.00012791,2]
[420597406,1776297043643,-151.0,0.00012791,2]
[420597407,1776297043652,-463.7,0.00012827,2]
[420597408,1776297043662,-747.8093786,0.00012842,2]
[420597409,1776297043672,-1712.93078312,0.00012843,2]
[420597410,1776297043682,-251.11897888,0.00012843,2]
[420597411,1776297043692,-153.0,0.00012845,3]
[420597412,1776297043702,-166.66,0.0001288,2]
[420597413,1776297043712,-1518.63482093,0.000129,2]
[420597414,1776297043725,-426.17103314,0.000129,2]
[420597415,1776297043751,-2343.2919981,0.000129,2]
[420597416,1776297043761,-463.7,0.00012903,2]
[420597417,1776297043771,-191.91298748,0.00012918,2]
[420597418,1776297043780,-1000.0,0.00012922,2]
[420597419,1776297043790,-250.0,0.00013,2]
[420597420,1776297043800,-1252.0,0.00013027,2]
[420597421,1776297043809,-31005.6304229,0.00013039,2]
[420597422,1776297043819,-1000.0,0.00013158,2]
[420597423,1776297043829,-166.66,0.00013279,2]
[420597424,1776297043839,-200.0,0.00013375,2]
[420597425,1776297043855,-200.0,0.00013375,2]
[420597426,1776297043864,-200.0,0.00013375,2]
[420597427,1776297043875,-200.0,0.00013375,2]
[420597428,1776297043885,-300.01,0.00013375,2]
[420597429,1776297043895,-2000.0,0.0001338,2]
[420597430,1776297043905,-2000.0,0.0001338,2]
[420597431,1776297043915,-1776.30922209,0.00013391,2]
[420597432,1776297043925,-260.4103811,0.00013391,2]
[420597433,1776297043935,-2000.0,0.000134,2]
[420597434,1776297043944,-200.0,0.00013406,2]
[420597435,1776297043954,-200.0,0.00013406,2]
[420597436,1776297043964,-200.0,0.00013407,2]
[420597437,1776297043974,-200.0,0.00013407,2]
[420597438,1776297043984,-151.0,0.00013425,2]
[420597439,1776297043994,-495.0,0.00013432,2]
[420597440,1776297044004,-495.0,0.00013432,2]
[420597441,1776297044013,-178.62081672,0.00013481,2]
[420597442,1776297044024,-13144.38856254,0.00013481,2]
[420597443,1776297044033,-311.9123,0.000135,2]
[420597444,1776297044043,-504.0,0.000135,2]
[420597445,1776297044052,-2000.0,0.00013515,2]
[420597446,1776297044062,-2000.0,0.00013515,2]
[420597447,1776297044072,-2000.0,0.00013515,2]
[420597448,1776297044082,-500.0,0.00013515,2]
[420597449,1776297044092,-788.44137419,0.00013515,2]
[420597450,1776297044102,-5888.0,0.00013527,2]
[420597451,1776297044112,-19702.13329953,0.00013567,2]
[420597452,1776297044122,-6742.59821864,0.00013567,2]
[420597453,1776297044133,-612.0,0.00013571,2]
[420597454,1776297044143,-5888.0,0.00013576,2]
[420597455,1776297044153,-5888.0,0.00013588,2]
[420597456,1776297044162,-1930.54840596,0.00013598,2]
[420597457,1776297044172,-10000.0,0.00013599,2]
[420597458,1776297044182,-5888.0,0.00013603,2]
[420597459,1776297044192,-183.75931855,0.00013663,2]
[420597460,1776297044202,-1339.67675735,0.00013663,2]
[420597461,1776297044212,-182.18704184,0.00013663,2]
[420597462,1776297044222,-4034.25676882,0.00013663,2]
[420597463,1776297044232,-612.0,0.00013667,2]
[420597464,1776297044242,-166.66,0.00013678,2]
[420597465,1776297044251,-300.0,0.00013697,2]
[420597466,1776297044266,-300.0,0.00013697,2]
[420597467,1776297044276,-500.0,0.00013698,2]
[420597468,1776297044286,-500.0,0.00013698,2]
[420597469,1776297044296,-500.0,0.00013698,2]
[420597470,1776297044306,-500.0,0.00013698,2]
[420597471,1776297044316,-500.0,0.00013698,2]
[420597472,1776297044326,-500.0,0.00013698,2]
[420597473,1776297044336,-500.0,0.00013698,2]
[420597474,1776297044346,-500.0,0.00013698,2]
[420597475,1776297044356,-500.0,0.00013698,2]
[420597476,1776297044366,-500.0,0.00013698,2]
[420597477,1776297044377,-500.0,0.00013698,2]
[420597478,1776297044387,-335.33020794,0.00013698,2]
[420597479,1776297044398,-192.64273727,0.00013698,2]
[420597480,1776297044408,-500.0,0.00013698,2]
[420597481,1776297044418,-500.0,0.00013698,2]
[420597482,1776297044428,-500.0,0.00013698,2]
[420597483,1776297044438,-500.0,0.00013698,2]
[420597484,1776297044448,-500.0,0.00013698,2]
[420597485,1776297044458,-500.0,0.00013698,2]
[420597486,1776297044468,-500.0,0.00013698,2]
[420597487,1776297044477,-500.0,0.00013698,2]
[420597488,1776297044487,-500.0,0.00013698,2]
[420597489,1776297044497,-500.0,0.00013698,2]
[420597490,1776297044507,-500.0,0.00013698,2]
[420597491,1776297044517,-500.0,0.00013698,2]
[420597492,1776297044527,-500.0,0.00013698,2]
[420597493,1776297044537,-570.29159702,0.00013698,2]
[420597494,1776297044547,-500.0,0.00013698,2]
[420597495,1776297044557,-500.0,0.00013698,2]
[420597496,1776297044566,-500.0,0.00013698,2]
[420597497,1776297044577,-500.0,0.00013698,2]
[420597498,1776297044587,-500.0,0.00013698,2]
[420597499,1776297044597,-500.0,0.00013698,2]
[420597500,1776297044607,-500.0,0.00013698,2]
[420597501,1776297044617,-500.0,0.00013698,2]
[420597502,1776297044627,-500.0,0.00013698,2]
[420597503,1776297044638,-500.0,0.00013698,2]
[420597504,1776297044648,-500.0,0.00013698,2]
[420597505,1776297044663,-500.0,0.00013698,2]
[420597506,1776297044673,-500.0,0.00013698,2]
[420597507,1776297044683,-500.0,0.00013698,2]
[420597508,1776297044693,-500.0,0.00013698,2]
[420597509,1776297044703,-500.0,0.00013698,2]
[420597510,1776297044713,-500.0,0.00013698,2]
[420597511,1776297044724,-500.0,0.00013698,2]
[420597512,1776297044735,-419.89245838,0.00013698,2]
[420597513,1776297044745,-500.0,0.00013698,2]
[420597514,1776297044756,-500.0,0.00013698,2]
[420597515,1776297044766,-500.0,0.00013698,2]
[420597516,1776297044776,-500.0,0.00013698,2]
[420597517,1776297044786,-500.0,0.00013698,2]
[420597518,1776297044797,-500.0,0.00013698,2]
[420597519,1776297044807,-500.0,0.00013698,2]
[420597520,1776297044817,-500.0,0.00013698,2]
[420597521,1776297044827,-500.0,0.00013698,2]
[420597522,1776297044837,-500.0,0.00013698,2]
[420597523,1776297044847,-500.0,0.00013698,2]
[420597524,1776297044857,-500.0,0.00013698,2]
[420597525,1776297044867,-500.0,0.00013698,2]
[420597526,1776297044877,-500.0,0.00013698,2]
[420597527,1776297044888,-500.0,0.00013698,2]
[420597528,1776297044898,-500.0,0.00013698,2]
[420597529,1776297044908,-500.0,0.00013698,2]
[420597530,1776297044918,-500.0,0.00013698,2]
[420597531,1776297044929,-500.0,0.00013698,2]
[420597532,1776297044939,-500.0,0.00013698,2]
[420597533,1776297044949,-500.0,0.00013698,2]
[420597534,1776297044960,-500.0,0.00013698,2]
[420597535,1776297044970,-500.0,0.00013698,2]
[420597536,1776297044980,-500.0,0.00013698,2]
[420597537,1776297044990,-500.0,0.00013698,2]
[420597538,1776297045000,-500.0,0.00013698,2]
[420597539,1776297045011,-500.0,0.00013698,2]
[420597540,1776297045021,-500.0,0.00013698,2]
[420597541,1776297045030,-500.0,0.00013698,2]
[420597542,1776297045040,-500.0,0.00013698,2]
[420597543,1776297045055,-500.0,0.00013698,2]
[420597544,1776297045065,-500.0,0.00013698,2]
[420597545,1776297045076,-500.0,0.00013698,2]
[420597546,1776297045087,-500.0,0.00013698,2]
[420597547,1776297045097,-151.0,0.00013698,2]
[420597548,1776297045107,-500.0,0.00013698,2]
[420597549,1776297045117,-500.0,0.00013698,2]
[420597550,1776297045127,-500.0,0.00013698,2]
[420597551,1776297045137,-500.0,0.00013698,2]
[420597552,1776297045147,-500.0,0.00013698,2]
[420597553,1776297045157,-500.0,0.00013698,2]
[420597554,1776297045167,-500.0,0.00013698,2]
[420597555,1776297045176,-500.0,0.00013698,2]
[420597556,1776297045186,-500.0,0.00013698,2]
[420597557,1776297045196,-500.0,0.00013698,2]
[420597558,1776297045206,-500.0,0.00013698,2]
[420597559,1776297045216,-500.0,0.00013698,2]
[420597560,1776297045226,-500.0,0.00013698,2]
[420597561,1776297045236,-500.0,0.00013698,2]
[420597562,1776297045247,-500.0,0.00013698,2]
[420597563,1776297045257,-500.0,0.00013698,2]
[420597564,1776297045267,-500.0,0.00013698,2]
[420597565,1776297045276,-500.0,0.00013698,2]
[420597566,1776297045286,-500.0,0.00013698,2]
[420597567,1776297045296,-500.0,0.00013698,2]
[420597568,1776297045306,-819.4,0.00013698,2]
[420597569,1776297045315,-819.4,0.00013698,2]
[420597570,1776297045325,-819.4,0.00013698,2]
[420597571,1776297045335,-819.4,0.00013698,2]
[420597572,1776297045345,-819.4,0.00013698,2]
[420597573,1776297045355,-819.4,0.00013698,2]
[420597574,1776297045364,-819.4,0.00013698,2]
[420597575,1776297045374,-819.4,0.00013698,2]
[420597576,1776297045384,-819.4,0.00013698,2]
[420597577,1776297045394,-819.4,0.00013698,2]
[420597578,1776297045404,-819.4,0.00013698,2]
[420597579,1776297045414,-819.4,0.00013698,2]
[420597580,1776297045424,-819.4,0.00013698,2]
[420597581,1776297045435,-819.4,0.00013698,2]
[420597582,1776297045444,-500.0,0.00013698,2]
[420597583,1776297045454,-500.0,0.00013698,2]
[420597584,1776297045468,-500.0,0.00013698,2]
[420597585,1776297045478,-500.0,0.00013698,2]
[420597586,1776297045488,-500.0,0.00013698,2]
[420597587,1776297045498,-500.0,0.00013698,2]
[420597588,1776297045508,-500.0,0.00013698,2]
[420597589,1776297045518,-500.0,0.00013698,2]
[420597590,1776297045528,-500.0,0.00013698,2]
[420597591,1776297045538,-500.0,0.00013698,2]
[420597592,1776297045548,-500.0,0.00013698,2]
[420597593,1776297045558,-500.0,0.00013698,2]
[420597594,1776297045568,-500.0,0.00013698,2]
[420597595,1776297045577,-500.0,0.00013698,2]
[420597596,1776297045587,-587.77407481,0.00013698,2]
[420597597,1776297045597,-500.0,0.00013698,2]
[420597598,1776297045607,-500.0,0.00013698,2]
[420597599,1776297045617,-500.0,0.00013698,2]
[420597600,1776297045627,-500.0,0.00013698,2]
[420597601,1776297045637,-500.0,0.00013698,2]
[420597602,1776297045647,-500.0,0.00013698,2]
[420597603,1776297045657,-782.45,0.00013698,2]
[420597604,1776297045666,-782.45,0.00013698,2]
[420597605,1776297045676,-782.45,0.00013698,2]
[420597606,1776297045687,-782.45,0.00013698,2]
[420597607,1776297045697,-782.45,0.00013698,2]
[420597608,1776297045707,-782.45,0.00013698,2]
[420597609,1776297045716,-321.68208,0.00013698,2]
[420597610,1776297045726,-321.68208,0.00013698,2]
[420597611,1776297045736,-622.85,0.00013698,2]
[420597612,1776297045746,-622.85,0.00013698,2]
[420597613,1776297045756,-622.85,0.00013698,2]
[420597614,1776297045766,-622.85,0.00013698,2]
[420597615,1776297045775,-622.85,0.00013698,2]
[420597616,1776297045785,-622.85,0.00013698,2]
[420597617,1776297045796,-622.85,0.00013698,2]
[420597618,1776297045805,-321.68208,0.00013698,2]
[420597619,1776297045816,-321.68208,0.00013698,2]
[420597620,1776297045825,-500.0,0.00013698,2]
[420597621,1776297045835,-500.0,0.00013698,2]
[420597622,1776297045845,-500.0,0.00013698,2]
[420597623,1776297045855,-500.0,0.00013698,2]
[420597624,1776297045864,-500.0,0.00013698,2]
[420597625,1776297045874,-500.0,0.00013698,2]
[420597626,1776297045884,-500.0,0.00013698,2]
[420597628,1776297045895,-234.822704,0.00013698,2]
[420597631,1776297045915,-234.822704,0.00013698,2]
[420597634,1776297045929,-234.822704,0.00013698,2]
[420597636,1776297045940,-234.822704,0.00013698,2]
[420597638,1776297045950,-500.0,0.00013698,2]
[420597639,1776297045960,-500.0,0.00013698,2]
[420597640,1776297045969,-500.0,0.00013698,2]
[420597641,1776297045979,-500.0,0.00013698,2]
[420597642,1776297045989,-500.0,0.00013698,2]
[420597644,1776297045998,-500.0,0.00013698,2]
[420597645,1776297046009,-209.622494,0.00013698,2]
[420597646,1776297046019,-209.622494,0.00013698,2]
[420597647,1776297046028,-209.622494,0.00013698,2]
[420597648,1776297046039,-209.622494,0.00013698,2]
[420597649,1776297046048,-500.0,0.00013699,2]
[420597650,1776297046058,-500.0,0.00013699,2]
[420597651,1776297046068,-500.0,0.00013699,2]
[420597652,1776297046078,-500.0,0.00013699,2]
[420597653,1776297046087,-500.0,0.00013699,2]
[420597654,1776297046096,-500.0,0.00013699,2]
[420597655,1776297046106,-500.0,0.00013699,2]
[420597656,1776297046116,-500.0,0.00013699,2]
[420597657,1776297046126,-650.0,0.00013699,2]
[420597658,1776297046136,-1465.99,0.00013699,2]
[420597659,1776297046146,-166.66,0.00013699,2]
[420597660,1776297046156,-200.0,0.00013699,2]
[420597661,1776297046166,-151.0,0.00013699,2]
[420597662,1776297046176,-151.0,0.00013699,2]
[420597663,1776297046185,-151.0,0.00013699,2]
[420597664,1776297046195,-151.0,0.00013699,2]
[420597665,1776297046205,-715.537852,0.00013699,2]
[420597666,1776297046215,-715.537852,0.00013699,2]
[420597667,1776297046224,-715.537852,0.00013699,2]
[420597668,1776297046234,-715.537852,0.00013699,2]
[420597669,1776297046244,-715.537852,0.00013699,2]
[420597670,1776297046255,-715.537852,0.00013699,2]
[420597671,1776297046264,-715.537852,0.00013699,2]
[420597672,1776297046274,-715.537852,0.00013699,2]
[420597673,1776297046284,-151.0,0.00013699,2]
[420597674,1776297046294,-151.0,0.00013699,2]
[420597675,1776297046304,-151.0,0.00013699,2]
[420597676,1776297046315,-151.0,0.00013699,2]
[420597677,1776297046325,-151.0,0.00013699,2]
[420597678,1776297046335,-301.970509,0.00013699,2]
[420597679,1776297046345,-307.425473,0.00013699,2]
[420597680,1776297046358,-307.425473,0.00013699,2]
[420597681,1776297046369,-307.425473,0.00013699,2]
[420597682,1776297046378,-307.425473,0.00013699,2]
[420597683,1776297046389,-307.425473,0.00013699,2]
[420597684,1776297046399,-307.425473,0.00013699,2]
[420597685,1776297046409,-307.425473,0.00013699,2]
[420597686,1776297046419,-307.425473,0.00013699,2]
[420597687,1776297046429,-500.40308644,0.00013699,2]
[420597688,1776297046439,-500.0,0.00013699,2]
[420597689,1776297046448,-211.36199647,0.00013699,2]
[420597690,1776297046458,-560.82964069,0.00013699,2]
[420597691,1776297046469,-500.0,0.00013699,2]
[420597692,1776297046479,-500.0,0.00013699,2]
[420597693,1776297046489,-340.26441612,0.00013699,2]
[420597694,1776297046499,-500.0,0.00013699,2]
[420597695,1776297046508,-500.0,0.00013699,2]
[420597696,1776297046518,-500.0,0.00013699,2]
[420597697,1776297046528,-404.32504708,0.00013699,2]
[420597698,1776297046539,-500.0,0.00013699,2]
[420597699,1776297046548,-500.68363415,0.00013699,2]
[420597700,1776297046558,-500.0,0.00013699,2]
[420597701,1776297046567,-500.0,0.00013699,2]
[420597702,1776297046577,-500.0,0.00013699,2]
[420597703,1776297046587,-160.56427767,0.00013699,2]
[420597704,1776297046596,-500.0,0.00013699,2]
[420597705,1776297046606,-500.6016971,0.00013699,2]
[420597706,1776297046615,-500.0,0.00013699,2]
[420597708,1776297046626,-500.0,0.00013699,2]
[420597709,1776297046635,-500.0,0.00013699,2]
[420597710,1776297046646,-500.0,0.00013699,2]
[420597711,1776297046656,-500.0,0.00013699,2]
[420597712,1776297046666,-500.0,0.00013699,2]
[420597713,1776297046676,-500.51206293,0.00013699,2]
[420597714,1776297046685,-500.0,0.00013699,2]
[420597715,1776297046695,-312.92490801,0.00013699,2]
[420597716,1776297046705,-500.0,0.00013699,2]
[420597717,1776297046714,-500.0,0.00013699,2]
[420597718,1776297046724,-500.46328465,0.00013699,2]
[420597719,1776297046734,-500.0,0.00013699,2]
[420597720,1776297046745,-500.0,0.00013699,2]
[420597721,1776297046755,-519.73871494,0.00013699,2]
[420597722,1776297046765,-500.0,0.00013699,2]
[420597723,1776297046775,-500.0,0.00013699,2]
[420597724,1776297046785,-500.0,0.00013699,2]
[420597725,1776297046795,-500.0,0.00013699,2]
[420597726,1776297046808,-500.33240079,0.00013699,2]
[420597727,1776297046817,-500.0,0.00013699,2]
[420597728,1776297046827,-159.79,0.00013699,2]
[420597729,1776297046837,-786.68,0.00013699,2]
[420597730,1776297046847,-1000.0,0.00013699,2]
[420597731,1776297046857,-1000.0,0.00013699,2]
[420597732,1776297046867,-418.0,0.00013699,2]
[420597733,1776297046877,-377.39648373,0.00013699,2]
[420597734,1776297046887,-483.0,0.00013699,2]
[420597735,1776297046898,-483.0,0.00013699,2]
[420597736,1776297046907,-483.0,0.00013699,2]
[420597737,1776297046918,-483.0,0.00013699,2]
[420597738,1776297046928,-483.0,0.00013699,2]
[420597739,1776297046938,-483.0,0.00013699,2]
[420597740,1776297046948,-483.0,0.00013699,2]
[420597741,1776297046958,-483.0,0.00013699,2]
[420597742,1776297046968,-483.0,0.00013699,2]
[420597743,1776297046978,-483.0,0.00013699,2]
[420597744,1776297046987,-483.0,0.00013699,2]
[420597745,1776297046997,-483.0,0.00013699,2]
[420597746,1776297047007,-483.0,0.00013699,2]
[420597747,1776297047018,-483.0,0.00013699,2]
[420597748,1776297047028,-483.0,0.00013699,2]
[420597749,1776297047039,-483.0,0.00013699,2]
[420597750,1776297047050,-483.0,0.00013699,2]
[420597751,1776297047060,-483.0,0.00013699,2]
[420597752,1776297047905,-483.0,0.00013699,2]
[420597753,1776297047916,-483.0,0.00013699,2]
[420597754,1776297047926,-483.0,0.00013699,2]
[420597755,1776297047936,-483.0,0.00013699,2]
[420597756,1776297047945,-483.0,0.00013699,2]
[420597757,1776297047955,-500.0,0.00013699,2]
[420597758,1776297047965,-500.0,0.00013699,2]
[420597759,1776297047974,-367.57694474,0.00013699,2]
[420597760,1776297047984,-485.0,0.00013699,2]
[420597761,1776297047994,-1575.0,0.000137,2]
[420597762,1776297048003,-1575.0,0.000137,2]
[420597763,1776297048013,-150.0,0.000137,2]
[420597764,1776297048023,-150.06985397,0.000137,2]
[420597765,1776297048033,-1259.04,0.000137,2]
[420597766,1776297048043,-150.0,0.000137,2]
[420597767,1776297048053,-489.03,0.000137,2]
[420597768,1776297048063,-2139.34,0.000137,2]
[420597769,1776297048072,-2139.34,0.000137,2]
[420597770,1776297048082,-612.0,0.00013727,2]
[420597771,1776297048092,-2600.0,0.0001376,2]
[420597772,1776297048102,-151.0,0.0001376,2]
[420597773,1776297048111,-1000.0,0.00013774,2]
[420597774,1776297048121,-5888.0,0.00013783,2]
[420597775,1776297048131,-612.0,0.00013828,2]
[420597776,1776297048141,-166.66,0.00013836,2]
[420597777,1776297048151,-612.0,0.00013852,2]
[420597778,1776297048161,-500.0,0.00013857,2]
[420597779,1776297048171,-5888.0,0.00013858,2]
[420597780,1776297048180,-321.68208,0.00013858,2]
[420597781,1776297048190,-321.68208,0.00013858,2]
[420597782,1776297048199,-321.68208,0.00013858,2]
[420597783,1776297048209,-321.68208,0.00013858,2]
[420597784,1776297048219,-612.0,0.00013873,2]
[420597785,1776297048229,-5888.0,0.00013882,2]
[420597786,1776297048238,-173.756328,0.00013882,2]
[420597787,1776297048248,-4200.0,0.000139,5]
[420597788,1776297048258,-4288.09785217,0.000139,2]
[420597789,1776297048268,-1842.03266331,0.00013939,2]
[420597790,1776297048277,-270.0455652,0.00013939,2]
[420597791,1776297048287,-1000.0,0.00013958,2]
[420597792,1776297048297,-166.66,0.00013973,2]
[420597793,1776297048307,-786.68,0.00013973,2]
[420597794,1776297048317,-209.622494,0.00013973,2]
[420597795,1776297048327,-209.622494,0.00013973,2]
[420597796,1776297048337,-209.622494,0.00013973,2]
[420597797,1776297048347,-209.622494,0.00013973,2]
[420597798,1776297048356,-242.55,0.00013979,2]
[420597799,1776297048366,-5440.89996692,0.0001399,2]
[420597800,1776297048376,-151.0,0.0001399,2]
[420597801,1776297048386,-151.0,0.0001399,2]
[420597802,1776297048395,-715.537852,0.00013994,2]
[420597803,1776297048405,-715.537852,0.00013994,2]
[420597804,1776297048414,-715.537852,0.00013994,2]
[420597805,1776297048424,-715.537852,0.00013994,2]
[420597806,1776297048434,-5888.0,0.00013994,2]
[420597807,1776297048443,-637.81,0.00014,2]
[420597808,1776297048453,-162.0,0.0001402,2]
[420597809,1776297048462,-1021.0,0.0001402,2]
[420597810,1776297048472,-162.0,0.0001402,2]
[420597811,1776297048481,-1613.0,0.00014045,2]
[420597812,1776297048491,-166.66,0.00014077,2]
[420597813,1776297048500,-166.66,0.0001411,2]
[420597814,1776297048510,-1575.0,0.00014125,2]
[420597815,1776297048520,-1000.0,0.00014211,2]
[420597816,1776297048530,-1575.0,0.00014225,2]
[420597817,1776297048539,-166.66,0.00014247,2]
[420597818,1776297048548,-197.55261272,0.00014247,2]
[420597819,1776297048558,-1000.0,0.00014247,2]
[420597820,1776297048567,-1000.0,0.00014247,2]
[420597821,1776297048576,-1000.0,0.00014247,2]
[420597822,1776297048586,-501.16478036,0.00014247,2]
[420597823,1776297048596,-500.0,0.00014247,2]
[420597824,1776297048605,-500.0,0.00014247,2]
[420597825,1776297048615,-500.0,0.00014247,2]
[420597826,1776297048624,-502.2335428,0.00014247,2]
[420597827,1776297048634,-1000.0,0.00014247,2]
[420597828,1776297048643,-653.14636732,0.00014247,2]
[420597829,1776297048652,-1000.0,0.00014247,2]
[420597830,1776297048661,-1000.0,0.00014247,2]
[420597831,1776297048671,-1081.17432582,0.00014247,2]
[420597832,1776297048680,-919.43825865,0.00014247,2]
[420597833,1776297048690,-1000.0,0.00014247,2]
[420597834,1776297048700,-1000.0,0.00014247,2]
[420597835,1776297048710,-1090.08638025,0.00014247,2]
[420597836,1776297048719,-501.26030577,0.00014247,2]
[420597837,1776297048729,-1004.08436302,0.00014247,2]
[420597838,1776297048738,-1000.0,0.00014247,2]
[420597839,1776297048748,-500.0,0.00014247,2]
[420597840,1776297048757,-5888.0,0.00014247,2]
[420597841,1776297048767,-786.68,0.00014247,2]
[420597842,1776297048776,-151.0,0.00014247,2]
[420597843,1776297048786,-284.317804,0.00014247,2]
[420597844,1776297048796,-234.822704,0.00014247,2]
[420597845,1776297048805,-234.822704,0.00014247,2]
[420597846,1776297048815,-234.822704,0.00014247,2]
[420597847,1776297048824,-234.822704,0.00014247,2]
[420597848,1776297048834,-307.425473,0.00014247,2]
[420597849,1776297048844,-307.425473,0.00014247,2]
[420597850,1776297048853,-307.425473,0.00014247,2]
[420597851,1776297048863,-307.425473,0.00014247,2]
[420597852,1776297048873,-1000.0,0.00014248,2]
[420597853,1776297048882,-2815.0,0.0001426,2]
[420597854,1776297048892,-184.59,0.00014291,2]
[420597855,1776297048902,-250.0,0.00014293,2]
[420597856,1776297048912,-5888.0,0.00014293,2]
[420597857,1776297048921,-1348.0,0.0001432,2]
[420597858,1776297048930,-3527.0,0.0001432,2]
[420597859,1776297048940,-1047.0,0.0001432,2]
[420597860,1776297048949,-1265.0,0.0001432,2]
[420597861,1776297048959,-150.0,0.0001432,2]
[420597862,1776297048969,-416.0,0.0001432,2]
[420597863,1776297048978,-150.0,0.0001432,2]
[420597864,1776297048988,-3777.0,0.0001432,2]
[420597865,1776297048998,-649.0,0.00014322,3]
[420597866,1776297049008,-1000.0,0.00014335,2]
[420597867,1776297049017,-172.0,0.00014335,2]
[420597868,1776297049027,-1575.0,0.0001434,2]
[420597869,1776297049037,-19702.13329953,0.00014344,2]
[420597870,1776297049047,-6742.59821864,0.00014344,2]
[420597871,1776297049056,-504.0,0.00014353,2]
[420597872,1776297049066,-1000.0,0.00014356,2]
[420597873,1776297049075,-1465.99,0.00014384,2]
[420597874,1776297049085,-166.66,0.00014384,2]
[420597875,1776297049095,-986.84,0.00014384,2]
[420597876,1776297049104,-1000.0,0.00014419,2]
[420597877,1776297049114,-168.48,0.00014424,2]
[420597878,1776297049123,-583.68623596,0.00014427,2]
[420597879,1776297049133,-700.3,0.00014438,2]
[420597880,1776297049142,-151.0,0.00014449,2]
[420597881,1776297049152,-986.84,0.00014451,2]
[420597882,1776297049161,-985.16,0.00014451,2]
[420597883,1776297049171,-5888.0,0.00014467,2]
[420597884,1776297049180,-315.30839717,0.00014487,2]
[420597885,1776297049189,-500.0,0.00014499,2]
[420597886,1776297049199,-819.4,0.00014499,2]
[420597887,1776297049208,-500.0,0.00014499,2]
[420597888,1776297049218,-678.91176894,0.000145,4]
[420597889,1776297049228,-407.34706137,0.000145,4]
[420597890,1776297049237,-271.56470758,0.000145,4]
[420597891,1776297049247,-459.08415941,0.000145,4]
[420597892,1776297049257,-275.45049565,0.000145,4]
[420597893,1776297049268,-183.63366376,0.000145,4]